bitfinex/quotes_ETHUSD_20240530
["timestamp","ask_amount","ask_price","bid_price","bid_amount"]
[1717051982924,1.58860791,3755.8,3755.2,1.59776]
[1717051983124,1.58860791,3755.8,3755.4,0.07378187]
[1717051983324,1.58860791,3755.9,3755.3,0.20283016]
[1717051983924,1.58860791,3755.8,3755.4,0.07378187]
[1717051984525,1.58860791,3755.9,3755.4,0.07378187]
[1717051984773,1.59723,3756.5,3755.4,0.07378187]
[1717051984774,1.58860791,3755.8,3755.4,0.07378187]
[1717051985971,1.7474687,3755.8,3755.4,0.07378187]
[1717051986177,2.13860791,3755.7,3755.4,0.07378187]
[1717051986375,0.55,3755.7,3754.7,1.59798]
[1717051986550,1.5894697,3755.3,3754.8,0.07378187]
[1717051987082,1.5894697,3755.2,3754.8,0.07378187]
[1717051987378,1.5894697,3755.2,3754.9,0.16717619]
[1717051987735,1.5894697,3755.2,3755.0,0.07378187]
[1717051987942,0.55,3755.7,3755.0,0.07378187]
[1717051988140,1.58945462,3755.1,3755.0,0.07378187]
[1717051988666,1.58945462,3755.1,3754.7,1.59798]
[1717051988869,1.58945462,3755.1,3755.0,0.07378187]
[1717051989050,1.58945462,3755.1,3754.7,1.999138]
[1717051989683,1.58945462,3755.0,3754.4,2.4136]
[1717051989910,1.58945462,3754.8,3754.4,2.4136]
[1717051990048,1.58945462,3754.7,3754.4,2.4136]
[1717051990383,1.58945462,3754.8,3754.4,2.4136]
[1717051990684,1.58945462,3754.7,3754.4,2.4136]
[1717051990859,1.58945462,3754.7,3754.2,1.5982]
[1717051991381,1.58945462,3754.6,3754.2,1.5982]
[1717051991993,1.58836795,3754.5,3754.2,1.5982]
[1717051992195,1.58836795,3754.4,3753.7,1.59841]
[1717051992361,1.58865289,3754.2,3753.8,1.68648322]
[1717051992862,1.58865289,3754.3,3753.8,1.68648322]
[1717051993061,1.58865289,3754.3,3753.8,0.388591]
[1717051993464,1.58865289,3754.3,3753.9,0.07187879]
[1717051995314,4.00405289,3754.1,3753.9,0.07187879]
[1717051995483,1.10645461,3754.0,3753.9,0.07187879]
[1717051995683,1.10645461,3754.0,3752.6,4.04328]
[1717051996009,1.10645461,3754.0,3752.6,1.59888]
[1717051996010,1.5896204,3753.3,3752.6,1.59888]
[1717051996218,1.5896204,3753.4,3752.7,0.06953837]
[1717051996358,1.5896204,3753.5,3752.7,0.06953837]
[1717051997185,1.5896204,3753.5,3752.8,3.61039222]
[1717051997389,1.5896204,3753.6,3752.9,1.59874]
[1717051997583,1.5896204,3753.6,3753.0,0.72186706]
[1717051997829,1.5896204,3753.8,3753.0,0.79175264]
[1717051998831,1.5896204,3753.9,3753.0,0.79175264]
[1717051999031,1.5896204,3753.9,3753.0,0.06988558]
[1717051999327,1.5896204,3753.7,3753.0,0.06988558]
[1717051999892,2.9448,3753.6,3753.0,0.06988558]
[1717052000093,1.5896204,3753.5,3753.0,0.06988558]
[1717052000333,2.1396204,3753.4,3752.3,1.599]
[1717052000494,2.15568845,3753.3,3753.1,0.06788727]
[1717052000694,1.5896204,3753.2,3752.3,1.599]
[1717052001004,1.58943561,3753.1,3751.8,3.91363]
[1717052001231,2.3948,3752.7,3751.3,2.3144]
[1717052001395,0.55,3752.6,3751.4,0.06788727]
[1717052001588,1.08758871,3752.5,3751.4,0.06788727]
[1717052001819,0.55,3752.4,3751.4,0.06788727]
[1717052002034,0.55,3752.4,3751.3,2.3144]
[1717052002400,0.55,3752.4,3751.2,1.59947]
[1717052002609,0.55,3752.4,3751.3,0.06813345]
[1717052002798,0.38034642,3752.3,3751.3,0.06813345]
[1717052003394,0.55,3752.4,3751.3,0.06813345]
[1717052003596,1.08758871,3752.5,3751.4,2.89727222]
[1717052003831,6.33228706,3752.8,3751.6,1.5993]
[1717052003998,6.33228706,3752.8,3752.3,1.599]
[1717052004193,1.58875939,3753.2,3752.5,3.53891]
[1717052004410,6.33228706,3753.3,3752.8,1.5988]
[1717052004613,6.33228706,3753.3,3752.6,3.65017988]
[1717052004614,1.58875939,3754.2,3752.9,3.23789222]
[1717052004814,6.33228706,3754.3,3753.8,1.59837]
[1717052005152,6.33228706,3754.8,3754.0,1.59826]
[1717052005672,6.33228706,3754.8,3754.2,1.5982]
[1717052005806,6.33228706,3754.8,3754.4,1.59812]
[1717052006211,6.33228706,3754.8,3754.5,0.0681919]
[1717052006590,0.63322871,3754.7,3753.2,1.59863]
[1717052006879,0.63322871,3754.7,3753.3,1.29789222]
[1717052007007,1.93112093,3754.7,3753.3,0.0681919]
[1717052007245,2.89593222,3754.6,3753.3,0.0681919]
[1717052007570,1.59132465,3754.4,3753.2,1.59863]
[1717052007786,1.05636517,3754.3,3753.2,1.59863]
[1717052007933,2.35425739,3754.3,3752.6,2.2615]
[1717052008141,3.73869222,3754.2,3752.6,3.86038]
[1717052008373,3.73869222,3754.2,3752.7,0.0681919]
[1717052008374,2.71771949,3754.1,3752.7,0.0681919]
[1717052008692,2.792,3753.6,3752.7,0.0681919]
[1717052008989,1.59111523,3753.3,3752.7,0.0681919]
[1717052009314,1.59111523,3753.2,3751.9,1.59915]
[1717052009598,2.14111523,3753.2,3751.9,1.59915]
[1717052009791,2.14111523,3753.2,3752.0,0.06553394]
[1717052009792,0.55,3753.2,3752.0,0.06553394]
[1717052009993,0.51328989,3753.1,3752.0,0.06553394]
[1717052010144,0.51328989,3753.1,3751.9,1.59915]
[1717052010851,0.55,3753.0,3751.9,1.59915]
[1717052011354,0.51328989,3753.1,3751.9,1.59915]
[1717052011553,0.51328989,3753.1,3751.9,1.759065]
[1717052011858,0.51328989,3753.1,3752.0,0.06569344]
[1717052012950,0.51328989,3753.1,3752.0,1.36358566]
[1717052013285,4.01386,3753.4,3752.0,1.36358566]
[1717052013492,0.55,3753.3,3752.1,1.59909]
[1717052014162,1.59856,3753.4,3752.1,1.59909]
[1717052015101,2.16763726,3753.5,3752.1,1.59909]
[1717052015254,0.55,3753.4,3752.1,1.59909]
[1717052015451,0.55,3753.4,3752.1,1.88878822]
[1717052015879,0.55,3753.4,3752.2,0.06569344]
[1717052016075,1.59111523,3753.4,3752.3,2.89690222]
[1717052016265,1.59111523,3753.5,3752.3,2.89690222]
[1717052016461,1.59111523,3753.5,3752.4,0.32522939]
[1717052016714,1.59111523,3753.5,3752.5,0.06569344]
[1717052016907,1.59032557,3753.7,3752.5,0.06569344]
[1717052017206,1.59032557,3753.7,3752.8,1.59878]
[1717052017207,6.33228706,3753.7,3752.8,1.59878]
[1717052017403,6.33228706,3753.7,3752.8,2.89667222]
[1717052018388,6.33228706,3753.7,3752.9,0.28966722]
[1717052018592,6.33228706,3753.7,3752.8,2.89667222]
[1717052018786,6.33228706,3753.7,3752.8,1.59878]
[1717052019499,2.1661565,3753.6,3752.8,1.59878]
[1717052019665,0.57646454,3753.6,3752.8,1.59878]
[1717052019880,7.92197902,3753.7,3752.8,1.59878]
[1717052020101,1.36865394,3753.6,3752.8,1.59878]
[1717052020306,1.58969196,3753.5,3752.8,1.59878]
[1717052020911,1.58969196,3753.4,3752.8,1.59878]
[1717052021463,1.58894118,3753.4,3752.8,1.59878]
[1717052021909,1.58894118,3753.5,3752.8,1.59878]
[1717052022123,1.58894118,3753.4,3752.8,1.59878]
[1717052022849,1.58894118,3753.3,3752.8,1.59878]
[1717052023708,1.58844763,3753.3,3752.8,1.59878]
[1717052024232,1.58844763,3753.5,3752.8,1.59878]
[1717052024408,1.58844763,3753.4,3752.8,1.59878]
[1717052024608,1.58844763,3753.5,3752.8,1.758658]
[1717052024810,2.16494845,3753.6,3752.8,1.758658]
[1717052025323,0.57650082,3753.6,3752.8,1.758658]
[1717052025722,2.16494845,3753.6,3752.8,1.758658]
[1717052026357,2.16452954,3753.6,3752.8,1.758658]
[1717052026553,2.16452954,3753.6,3752.8,1.59878]
[1717052026762,1.58809404,3753.5,3752.8,1.59878]
[1717052028373,1.58809404,3753.4,3752.8,1.59878]
[1717052031472,1.58809404,3753.3,3752.8,1.59878]
[1717052031871,1.58809404,3753.2,3752.2,1.59904]
[1717052032176,1.58809404,3753.2,3752.2,2.32233449]
[1717052032326,1.58809404,3753.1,3752.3,0.06569688]
[1717052033128,3.67309222,3753.0,3752.3,0.06569688]
[1717052033332,1.58809404,3752.6,3752.3,0.06569688]
[1717052033611,1.74690344,3752.5,3751.7,1.59927]
[1717052033769,0.5764355,3752.9,3752.4,0.06360139]
[1717052033953,0.5764355,3752.9,3751.7,1.59927]
[1717052034275,1.58691799,3752.3,3751.7,1.59927]
[1717052034477,1.58691799,3752.3,3751.8,0.0615314]
[1717052035657,1.58691799,3752.2,3751.8,0.0615314]
[1717052035863,1.58691799,3752.2,3751.7,1.59927]
[1717052036236,1.58691799,3752.1,3751.7,1.59927]
[1717052036487,1.58691799,3752.0,3751.2,1.59948]
[1717052036694,1.58691799,3752.0,3751.3,0.159948]
[1717052036857,1.58691799,3751.9,3751.3,0.22154865]
[1717052037187,1.58691799,3751.9,3751.3,0.06160065]
[1717052037411,1.58691799,3752.1,3751.3,0.06160065]
[1717052037887,1.58691799,3752.0,3751.3,0.06160065]
[1717052038254,1.58691799,3752.1,3751.3,0.06160065]
[1717052039087,1.58691799,3752.1,3751.5,1.59935]
[1717052039679,1.58691799,3752.1,3751.6,0.06165259]
[1717052039848,1.58691799,3752.0,3751.6,0.06165259]
[1717052040053,2.2525,3751.9,3751.6,0.06165259]
[1717052040237,2.13691799,3751.8,3750.8,1.59962]
[1717052040435,1.58593063,3751.4,3750.8,1.59962]
[1717052040687,1.58593063,3751.4,3750.9,0.05784046]
[1717052040856,1.58593063,3751.3,3750.9,0.05784046]
[1717052041052,1.58593063,3751.2,3750.9,0.22358651]
[1717052041279,1.58593063,3751.3,3750.9,0.22358651]
[1717052041499,0.7351273,3752.0,3750.9,0.16574605]
[1717052041500,1.58593063,3751.6,3750.9,0.16574605]
[1717052041681,1.58593063,3751.5,3750.8,1.59962]
[1717052042542,1.58593063,3751.6,3751.0,1.59955]
[1717052042813,1.58593063,3752.0,3751.2,1.59948]
[1717052042944,1.58593063,3752.1,3751.2,1.59948]
[1717052043287,1.58593063,3752.1,3751.3,0.0560577]
[1717052043482,1.58593063,3752.1,3751.4,0.29534299]
[1717052043685,1.58593063,3752.3,3751.5,1.59936]
[1717052043992,1.58593063,3752.3,3751.6,0.0560577]
[1717052044555,1.58593063,3752.4,3751.6,0.0560577]
[1717052044757,1.58593063,3752.3,3751.6,0.0560577]
[1717052045007,1.58593063,3752.3,3751.8,1.5992]
[1717052045208,1.58593063,3752.5,3751.9,3.68159222]
[1717052045416,1.58593063,3753.1,3751.9,3.7375185]
[1717052045618,7.91821769,3753.2,3751.9,3.7375185]
[1717052045793,2.16236613,3753.1,3752.2,1.59902]
[1717052045991,3.01183145,3753.1,3752.2,1.59902]
[1717052046191,1.58593063,3753.0,3752.4,1.59897]
[1717052046396,2.16236613,3753.1,3752.6,1.59886]
[1717052046592,1.58593063,3753.1,3751.9,2.3837]
[1717052046841,1.58593063,3753.0,3752.0,1.29789222]
[1717052047006,1.58593063,3753.0,3752.0,1.59911]
[1717052047211,1.58593063,3752.8,3752.1,0.05570846]
[1717052047410,1.58593063,3752.8,3752.2,1.59902]
[1717052047768,1.58593063,3752.9,3752.3,0.0556739]
[1717052048829,1.58593063,3752.7,3752.3,0.0556739]
[1717052049035,1.58593063,3752.5,3750.3,0.67949237]
[1717052049352,0.5764355,3752.7,3750.3,0.67949237]
[1717052049353,1.58593063,3752.1,3751.5,1.59935]
[1717052049646,1.58593063,3752.1,3751.7,1.59925]
[1717052049804,1.58593063,3752.4,3751.7,1.59925]
[1717052050007,1.58593063,3752.4,3751.9,1.59915]
[1717052050249,1.58593063,3752.4,3751.7,0.52526422]
[1717052050250,1.58593063,3752.6,3752.1,1.59908]
[1717052050452,1.58593063,3752.7,3752.1,2.89697222]
[1717052050608,1.58593063,3752.7,3752.3,1.59899]
[1717052050810,1.58593063,3752.7,3752.4,1.29789222]
[1717052051010,1.58593063,3753.2,3752.5,1.89416359]
[1717052051213,1.58593063,3753.2,3752.7,1.59881]
[1717052051406,1.58593063,3753.4,3752.8,1.29789222]
[1717052051810,1.58797669,3753.5,3752.9,0.05554254]
[1717052052355,1.58797669,3753.3,3752.7,1.59881]
[1717052052723,1.58797669,3753.2,3752.8,0.05553563]
[1717052053125,1.58797669,3753.2,3752.7,1.59881]
[1717052053347,0.57644506,3754.0,3752.7,1.59881]
[1717052053348,1.58797669,3753.4,3752.9,0.05553563]
[1717052053657,1.58797669,3753.4,3753.0,0.05552181]
[1717052053873,1.58797669,3753.4,3752.7,2.03570836]
[1717052054072,1.58797669,3753.5,3752.8,0.05552181]
[1717052054378,1.74677436,3753.5,3752.7,1.59881]
[1717052054666,1.58797669,3753.5,3752.8,0.05553563]
[1717052054869,1.58797669,3753.5,3752.9,1.59872]
[1717052055068,1.58797669,3753.6,3752.9,1.59872]
[1717052055374,1.58797669,3753.6,3753.0,0.05553563]
[1717052055525,1.58797669,3753.6,3753.1,1.59865]
[1717052055863,1.58797669,3754.0,3753.2,0.29520779]
[1717052056024,1.58797669,3754.1,3753.3,0.05553563]
[1717052056347,1.58797669,3753.9,3753.1,1.59865]
[1717052056548,1.58797669,3753.9,3753.4,0.05553563]
[1717052056859,1.58797669,3753.6,3753.1,1.59865]
[1717052057058,1.58797669,3753.5,3752.5,4.07379]
[1717052057269,12.36,3754.4,3752.5,4.07379]
[1717052057270,1.5885305,3753.2,3752.7,1.29789222]
[1717052057476,1.5885305,3753.4,3753.3,1.59859]
[1717052057634,9.33228706,3754.8,3753.3,2.89648222]
[1717052057635,1.5885305,3753.5,3753.3,2.89648222]
[1717052057829,1.5885305,3753.5,3753.4,0.05547688]
[1717052058168,9.33228706,3754.8,3753.4,0.05547688]
[1717052058169,1.5885305,3754.1,3753.4,0.05547688]
[1717052058373,1.5885305,3753.9,3753.4,0.05547688]
[1717052058673,1.5885305,3753.9,3753.3,1.59859]
[1717052059327,1.74757224,3754.0,3753.3,1.59859]
[1717052059577,1.58871919,3754.0,3753.3,1.59859]
[1717052060263,1.58871919,3753.7,3753.3,1.59859]
[1717052060864,1.58871919,3753.8,3753.3,1.59859]
[1717052061184,0.57637806,3754.3,3753.3,2.89648222]
[1717052061185,1.58871919,3753.9,3753.3,2.89648222]
[1717052061473,9.33228706,3754.8,3753.3,2.89648222]
[1717052061474,1.58871919,3754.2,3753.5,1.5985]
[1717052061682,0.57637806,3754.7,3753.5,1.5985]
[1717052061683,1.58871919,3754.3,3753.5,1.5985]
[1717052061882,0.15887192,3754.2,3753.5,1.5985]
[1717052062052,0.15887192,3754.2,3752.9,1.59872]
[1717052062253,1.58851123,3754.0,3753.0,1.35298543]
[1717052062782,1.58851123,3753.9,3753.0,1.35298543]
[1717052063138,1.58851123,3753.8,3753.0,1.35298543]
[1717052063360,1.58851123,3753.9,3753.0,1.35298543]
[1717052063880,1.58851123,3754.0,3753.0,1.35298543]
[1717052064081,1.8049954,3754.0,3753.0,1.35298543]
[1717052064389,1.58851123,3754.0,3753.0,1.35298543]
[1717052065849,0.57633042,3754.3,3753.1,1.59864]
[1717052065850,1.58851123,3753.9,3753.1,1.59864]
[1717052066052,1.58851123,3753.9,3753.2,0.05202995]
[1717052066285,2.16484165,3754.1,3753.2,1.34992217]
[1717052066464,2.16484165,3754.1,3753.3,3.19130844]
[1717052066803,0.57633042,3754.1,3753.4,0.05202995]
[1717052067176,0.57633042,3754.1,3753.3,3.19130844]
[1717052067379,7.92079829,3754.2,3753.3,3.19130844]
[1717052067579,7.92079829,3754.2,3753.4,0.05202995]
[1717052067989,9.17269012,3754.2,3753.3,1.59856]
[1717052068503,1.58851123,3754.0,3753.3,1.59856]
[1717052069005,7.58417889,3754.2,3753.3,1.59856]
[1717052069206,1.58776262,3754.0,3753.3,1.59856]
[1717052069371,2.16415443,3754.1,3753.3,2.89645222]
[1717052070408,1.58776262,3754.0,3753.3,2.89645222]
[1717052070777,1.58776262,3754.0,3753.3,1.59856]
[1717052071102,2.16415443,3754.1,3753.5,1.59848]
[1717052071263,2.16415443,3754.1,3753.5,2.89637222]
[1717052071464,3.31379858,3754.1,3753.1,2.3546]
[1717052071666,1.58776262,3753.9,3753.0,1.59871]
[1717052071993,1.58776262,3753.8,3753.0,2.89660222]
[1717052072371,1.58776262,3753.7,3753.0,2.89660222]
[1717052072807,1.58776262,3753.7,3753.0,1.59871]
[1717052073309,1.74653888,3753.7,3753.0,1.59871]
[1717052073612,1.58776262,3753.5,3753.0,1.59871]
[1717052073833,1.58776262,3753.4,3753.0,1.59871]
[1717052074799,1.58776262,3753.5,3753.0,1.59871]
[1717052075612,1.58776262,3753.4,3752.5,1.59893]
[1717052075815,1.58776262,3753.0,3752.5,1.59893]
[1717052075987,1.58776262,3752.9,3752.5,1.59893]
[1717052076188,3.0,3753.8,3752.5,1.59893]
[1717052076390,1.5893825,3753.1,3752.7,1.59883]
[1717052076592,1.5893825,3753.1,3752.7,2.89672222]
[1717052076905,1.5893825,3753.3,3752.8,0.28967222]
[1717052077278,1.5893825,3753.2,3752.9,0.05198849]
[1717052077922,1.5893825,3753.2,3752.7,1.59883]
[1717052078121,1.5893825,3753.2,3752.8,0.05202305]
[1717052078293,1.5893825,3753.0,3752.7,1.59883]
[1717052078487,1.5893825,3753.0,3752.8,0.05202305]
[1717052078839,1.5893825,3753.0,3752.7,1.59883]
[1717052079134,1.5893825,3753.0,3752.8,0.05202305]
[1717052079524,1.5893825,3752.9,3752.7,1.59883]
[1717052080020,1.5893825,3752.9,3752.8,0.0520507]
[1717052080202,0.57651622,3753.4,3752.8,0.0520507]
[1717052080408,0.57651622,3753.3,3752.7,1.59883]
[1717052080640,0.57651622,3753.2,3752.7,1.59883]
[1717052080818,0.57651622,3753.9,3752.8,0.0520507]
[1717052081134,1.75895726,3753.8,3752.7,1.59883]
[1717052081341,1.58935271,3752.8,3752.7,1.59883]
[1717052083194,1.58925345,3752.8,3752.7,1.59883]
[1717052083503,3.0,3753.7,3752.7,0.0520507]
[1717052083504,9.38819192,3753.5,3752.7,0.0520507]
[1717052083695,1.65211068,3753.4,3752.2,1.59905]
[1717052083893,1.65211068,3753.4,3752.3,0.05224765]
[1717052084240,1.58893006,3752.5,3752.3,0.05224765]
[1717052084440,1.58893006,3752.6,3752.3,0.05224765]
[1717052084732,1.58893006,3752.5,3752.4,0.05224765]
[1717052085097,1.58893006,3752.5,3752.2,1.59905]
[1717052085298,1.58893006,3752.5,3752.3,0.05233061]
[1717052085530,1.58893006,3752.4,3751.7,1.59926]
[1717052085730,1.58885074,3752.3,3751.8,0.05233407]
[1717052086055,1.58885074,3752.2,3751.8,0.05233407]
[1717052086400,1.58885074,3752.3,3751.8,0.05233407]
[1717052086595,1.58885074,3752.2,3751.8,0.05233407]
[1717052087092,1.58885074,3752.2,3751.9,1.59918]
[1717052087289,1.58885074,3752.5,3752.0,0.05245852]
[1717052088208,1.58885074,3752.4,3752.0,0.05245852]
[1717052088407,1.58885074,3752.5,3752.0,0.05245852]
[1717052091836,1.58885074,3752.3,3752.0,0.05245852]
[1717052092047,0.15888507,3752.2,3752.0,0.05245852]
[1717052092198,1.74773581,3752.2,3752.0,0.05245852]
[1717052092543,0.15888507,3752.2,3752.1,0.05246544]
[1717052092947,0.15888507,3752.2,3751.4,1.59939]
[1717052093253,1.58900804,3752.0,3751.4,1.59939]
[1717052093396,1.58900804,3752.0,3751.5,0.05246544]
[1717052093601,1.76379735,3752.0,3751.5,0.05246544]
[1717052093807,1.58900804,3751.9,3751.4,1.59939]
[1717052094211,1.58900804,3751.9,3750.9,1.5996]
[1717052094539,1.58900804,3751.9,3751.0,0.05246544]
[1717052094848,0.55,3751.8,3751.0,0.05246544]
[1717052095034,1.59933,3751.6,3751.0,0.05246544]
[1717052095237,0.55,3751.5,3751.0,0.05246544]
[1717052095563,0.55,3751.5,3750.3,0.1266575]
[1717052095859,1.58861256,3751.0,3750.3,0.1266575]
[1717052096047,1.58861256,3751.0,3750.3,1.7264975]
[1717052096413,1.58861256,3751.2,3750.3,1.7264975]
[1717052097314,2.16546006,3751.3,3750.3,1.7264975]
[1717052097591,1.59968,3750.8,3750.3,0.1266575]
[1717052098257,0.55,3750.7,3750.3,0.1266575]
[1717052098558,3.18777328,3750.8,3750.3,0.1266575]
[1717052098727,1.59968,3750.8,3750.3,0.1266575]
[1717052098920,1.59968,3750.8,3750.4,0.05357907]
[1717052099120,1.59968,3750.8,3750.3,0.1266575]
[1717052099315,1.59968,3750.8,3750.4,0.05357907]
[1717052099623,3.0,3751.0,3750.3,0.1266575]
[1717052099816,5.3147,3751.1,3750.3,0.1266575]
[1717052100162,3.76342723,3751.1,3750.3,0.1266575]
[1717052100326,1.59936,3751.5,3750.4,0.05357907]
[1717052100327,1.58809328,3751.4,3750.4,0.05357907]
[1717052100654,0.55,3751.3,3750.4,0.05357907]
[1717052100857,2.13809328,3751.3,3750.4,0.05357907]
[1717052101828,1.58809328,3751.3,3750.6,1.59972]
[1717052102160,1.58809328,3751.8,3750.9,1.59961]
[1717052102367,1.59887,3752.7,3751.0,1.29789222]
[1717052102368,2.16494718,3752.6,3751.0,1.29789222]
[1717052102550,1.58809328,3752.6,3751.0,1.29789222]
[1717052102747,1.58809328,3752.6,3751.1,0.05350985]
[1717052102947,1.00961042,3752.5,3751.0,1.29789222]
[1717052103131,1.58809328,3752.6,3751.6,1.5993]
[1717052103465,1.59861,3753.3,3751.9,1.59918]
[1717052103466,1.58809328,3753.1,3751.9,1.59918]
[1717052103670,1.59877,3752.9,3751.7,0.05350985]
[1717052103867,3.18698328,3752.6,3751.3,1.59942]
[1717052104066,2.16494718,3752.5,3751.8,0.05327805]
[1717052104241,1.92910814,3752.4,3751.3,1.59942]
[1717052104642,1.92910814,3752.4,3751.4,0.0530394]
[1717052104841,0.55,3752.3,3751.4,0.0530394]
[1717052105683,1.58809328,3752.4,3751.5,1.59933]
[1717052106167,1.58809328,3752.5,3751.6,0.05295296]
[1717052106938,1.945,3753.0,3751.6,0.34797048]
[1717052107140,1.58804784,3752.5,3751.6,0.34797048]
[1717052107474,1.58804784,3752.6,3751.7,1.59924]
[1717052107863,1.58804784,3752.7,3751.7,1.59924]
[1717052108068,1.58804784,3752.7,3751.8,0.05295296]
[1717052108225,1.58804784,3752.7,3751.9,0.32451027]
[1717052108687,1.58804784,3752.7,3752.0,0.05295296]
[1717052108967,1.58807796,3752.7,3752.0,0.05295296]
[1717052109518,1.58807796,3752.7,3751.7,1.59924]
[1717052109759,1.58807796,3752.7,3751.8,0.05287688]
[1717052109964,1.58807796,3752.7,3752.0,1.59913]
[1717052110466,6.33228706,3752.9,3751.4,1.59937]
[1717052110467,2.16464984,3752.8,3751.4,1.59937]
[1717052110769,1.58807796,3752.5,3751.6,1.5993]
[1717052110952,1.58807796,3752.5,3751.9,1.59917]
[1717052111156,1.58807796,3752.6,3752.0,1.64043729]
[1717052111336,2.16464984,3752.8,3752.0,0.05283885]
[1717052111525,1.58807796,3752.7,3751.3,1.59943]
[1717052111731,0.57657188,3752.8,3751.4,0.05283193]
[1717052111732,1.58807796,3752.3,3751.4,0.05283193]
[1717052112362,1.58807796,3752.2,3751.4,0.05283193]
[1717052112729,1.58807796,3752.1,3751.4,0.05283193]
[1717052113352,1.58807796,3752.2,3751.4,0.05283193]
[1717052113873,1.58807796,3752.0,3751.4,0.05283193]
[1717052114179,1.58807796,3752.0,3751.3,1.59943]
[1717052114346,1.58807796,3752.1,3751.5,1.59932]
[1717052114552,1.58807796,3752.2,3751.7,1.59925]
[1717052114750,6.33228706,3752.4,3751.7,2.89714222]
[1717052114964,6.33228706,3752.4,3751.8,0.28971422]
[1717052115479,1.58807796,3752.6,3752.0,1.59914]
[1717052115636,1.58807796,3752.7,3752.0,2.89703222]
[1717052115832,1.58807796,3752.8,3752.1,0.05272472]
[1717052116035,1.58807796,3752.7,3752.1,0.05272472]
[1717052116248,1.58807796,3752.6,3752.0,1.59914]
[1717052116456,1.58807796,3752.6,3752.0,1.78802542]
[1717052116646,1.58807796,3752.6,3752.1,0.05272472]
[1717052117143,1.58807796,3752.6,3752.2,1.59904]
[1717052117483,1.58807796,3752.8,3752.2,1.59904]
[1717052117642,0.57659752,3753.1,3752.3,0.60642004]
[1717052117643,1.58807796,3752.9,3752.3,0.60642004]
[1717052117849,1.58807796,3752.8,3752.3,0.05263828]
[1717052118275,1.58807796,3752.8,3752.2,1.59904]
[1717052118495,1.58807796,3752.7,3752.4,0.0525968]
[1717052118673,1.58807796,3752.7,3752.2,1.59904]
[1717052118880,1.58807796,3752.7,3752.5,0.0525968]
[1717052119062,1.58807796,3752.7,3752.2,1.59904]
[1717052119266,0.57659752,3753.1,3752.6,0.0525968]
[1717052119471,1.43538846,3753.0,3752.2,1.59904]
[1717052119762,1.43538846,3753.0,3752.3,0.05255532]
[1717052119961,1.58997836,3752.7,3752.3,0.05255532]
[1717052120295,1.58997836,3752.4,3751.6,1.59928]
[1717052120494,1.7489762,3752.4,3751.6,1.59928]
[1717052120692,1.58997836,3752.1,3751.7,0.05263137]
[1717052121051,1.58997836,3751.9,3751.0,1.59953]
[1717052121252,1.58997836,3751.9,3750.5,2.339]
[1717052121453,1.58997836,3751.7,3751.1,0.05087952]
[1717052121795,2.41163595,3751.6,3750.4,1.59979]
[1717052121957,1.58997836,3751.4,3750.4,1.59979]
[1717052122181,2.13997836,3751.3,3750.5,0.05087952]
[1717052122469,1.58997836,3751.2,3750.5,0.05087952]
[1717052122678,2.13997836,3751.1,3750.5,0.05087952]
[1717052122987,1.58997836,3751.0,3750.5,0.05087952]
[1717052124158,2.5879762,3751.1,3750.5,0.05087952]
[1717052125003,1.58997836,3751.1,3750.5,0.05087952]
[1717052125218,1.58997836,3751.3,3750.5,0.05087952]
[1717052125381,1.29789222,3751.1,3750.5,0.05087952]
[1717052125581,1.29789222,3751.1,3750.3,0.1266575]
[1717052125582,0.55,3751.0,3750.3,0.1266575]
[1717052125792,1.58997836,3750.6,3750.3,0.1266575]
[1717052126193,1.58997836,3750.6,3750.4,0.05131532]
[1717052126366,0.55,3750.5,3750.4,0.05131532]
[1717052126778,2.13997836,3750.6,3750.4,0.05131532]
[1717052126966,1.58997836,3750.6,3750.4,0.05131532]
[1717052127670,1.945,3751.4,3750.4,0.05131532]
[1717052127671,1.58997836,3750.9,3750.4,0.05131532]
[1717052128376,2.13997836,3750.8,3750.4,0.05131532]
[1717052129004,1.58997836,3750.5,3750.4,0.05131532]
[1717052129205,0.55,3750.5,3750.4,0.05131532]
[1717052129424,2.52159752,3750.6,3750.3,0.1266575]
[1717052129633,1.58804788,3750.4,3750.3,0.1266575]
[1717052130606,2.1646454,3750.5,3750.3,0.1266575]
[1717052130788,1.58804788,3750.5,3750.3,0.1266575]
[1717052131797,4.1096454,3750.6,3750.3,0.1266575]
[1717052132123,0.55,3750.5,3750.3,0.1266575]
[1717052132323,1.12659752,3750.5,3750.3,0.1266575]
[1717052133386,0.55,3750.5,3750.3,0.1266575]
[1717052134787,1.945,3750.6,3750.3,0.1266575]
[1717052134988,2.16501642,3750.7,3750.3,0.1266575]
[1717052135227,7.92033494,3751.0,3750.3,0.1266575]
[1717052135439,6.33228706,3751.0,3750.3,0.1266575]
[1717052135643,6.33228706,3751.0,3750.4,0.05202095]
[1717052136444,7.12432258,3751.0,3750.4,0.05202095]
[1717052136857,0.57692851,3750.9,3750.4,0.05202095]
[1717052137000,0.57692851,3750.9,3750.3,0.1266575]
[1717052137204,8.71239068,3751.0,3750.3,0.1266575]
[1717052137550,0.55,3750.9,3750.3,0.1266575]
[1717052138424,1.12073907,3750.8,3750.3,0.1266575]
[1717052138604,0.55,3750.7,3750.3,0.1266575]
[1717052139044,0.55,3750.7,3750.4,0.05206595]
[1717052140467,3.79289222,3750.7,3750.4,0.05206595]
[1717052140677,3.79289222,3750.7,3750.3,0.1266575]
[1717052140981,0.88731994,3750.6,3750.3,0.1266575]
[1717052141108,0.55,3750.5,3750.3,0.1266575]
[1717052141308,1.29789222,3750.4,3750.3,0.1266575]
[1717052141568,1.84789222,3750.4,3750.3,0.1266575]
[1717052142363,1.84789222,3750.4,3748.5,2.2848]
[1717052142364,1.84789222,3750.4,3747.9,3.3552116]
[1717052142365,1.0,3749.9,3747.9,3.3552116]
[1717052142566,1.58691359,3749.7,3747.9,3.3552116]
[1717052142733,4.4359,3749.4,3747.9,3.3552116]
[1717052142970,1.0,3749.5,3746.5,0.1266575]
[1717052142971,2.4909,3748.6,3746.5,0.1266575]
[1717052143219,1.60115,3747.4,3746.5,0.1266575]
[1717052143430,1.60129,3747.0,3746.5,0.1266575]
[1717052143558,1.60129,3747.0,3746.6,0.0424449]
[1717052143754,0.55,3746.9,3746.6,0.0424449]
[1717052144118,0.55,3746.9,3746.5,0.1266575]
[1717052144291,0.55,3746.9,3745.8,1.67838059]
[1717052144292,1.0,3745.9,3745.8,1.67838059]
[1717052144656,3.8364,3745.9,3745.8,1.37042633]
[1717052144857,7.25669229,3745.9,3745.8,1.37042633]
[1717052145055,1.60184,3745.7,3743.5,1.60275]
[1717052145256,1.60184,3745.7,3743.1,0.005]
[1717052145257,1.60258,3744.0,3743.1,0.005]